bitfinex-derivatives/quotes_BTCF0:USTF0_20250929
["timestamp","ask_amount","ask_price","bid_price","bid_amount"]
[1759138267296,0.75817522,112250.0,112240.0,0.38166174]
[1759138269096,0.75817522,112250.0,112240.0,0.1244332]
[1759138269293,0.75817522,112250.0,112240.0,0.38166174]
[1759138269494,0.50094668,112250.0,112240.0,0.38166174]
[1759138269695,0.75817522,112250.0,112240.0,0.38166174]
[1759138269895,0.50094668,112250.0,112240.0,0.38166174]
[1759138270194,0.75817522,112250.0,112240.0,0.38166174]
[1759138270800,0.75817522,112250.0,112240.0,0.1244332]
[1759138271098,0.75817522,112250.0,112240.0,0.38166174]
[1759138273003,0.77097522,112250.0,112240.0,0.0222]
[1759138273200,1.17097522,112250.0,112240.0,0.15939799]
[1759138274704,1.98549522,112250.0,112240.0,0.15939799]
[1759138274905,1.17097522,112250.0,112240.0,0.15939799]
[1759138275099,0.91374668,112250.0,112240.0,0.41662653]
[1759138275300,1.97269522,112250.0,112240.0,0.42923653]
[1759138275502,1.97269522,112250.0,112240.0,0.17200799]
[1759138275705,1.97269522,112250.0,112240.0,0.42923653]
[1759138275902,1.15817522,112250.0,112240.0,0.42923653]
[1759138276207,1.97269522,112250.0,112240.0,0.42923653]
[1759138277307,1.97269522,112250.0,112240.0,0.17200799]
[1759138277709,1.98549522,112250.0,112240.0,0.17200799]
[1759138277910,1.98549522,112250.0,112240.0,0.15939799]
[1759138279104,1.98549522,112250.0,112240.0,0.07032479]
[1759138279408,1.98549522,112250.0,112240.0,0.04812479]
[1759138279614,2.24272376,112250.0,112240.0,0.04812479]
[1759138280616,1.98549522,112250.0,112240.0,0.04812479]
[1759138281214,2.24272376,112250.0,112240.0,0.04812479]
[1759138282108,2.24272376,112250.0,112240.0,0.13719799]
[1759138282309,1.98562082,112250.0,112240.0,0.13719799]
[1759138283918,1.98566082,112250.0,112240.0,0.13719799]
[1759138284120,1.17110082,112250.0,112240.0,0.13719799]
[1759138284419,1.98566082,112250.0,112240.0,0.13719799]
[1759138286020,2.34646082,112250.0,112240.0,0.13719799]
[1759138288015,1.53190082,112250.0,112240.0,0.15834799]
[1759138288319,2.34646082,112250.0,112240.0,0.15834799]
[1759138288723,1.51154944,112250.0,112240.0,0.15834799]
[1759138288921,1.53188028,112250.0,112240.0,0.15834799]
[1759138289121,2.34644028,112250.0,112240.0,0.15834799]
[1759138289620,2.34644028,112250.0,112240.0,0.13719799]
[1759138292523,1.62484028,112250.0,112240.0,0.13719799]
[1759138292824,2.34644028,112250.0,112240.0,0.13719799]
[1759138293623,2.34644028,112250.0,112240.0,0.0890732]
[1759138293822,2.34644028,112250.0,112230.0,0.15035909]
[1759138293823,0.1187932,112240.0,112230.0,0.04812479]
[1759138294020,0.1215211,112230.0,112220.0,0.15836349]
[1759138294218,1.83192022,112230.0,112220.0,0.1102387]
[1759138294412,1.57456608,112230.0,112220.0,0.1102387]
[1759138296821,1.57456608,112230.0,112220.0,0.1132387]
[1759138297022,1.57456608,112230.0,112220.0,0.1192387]
[1759138303042,1.57456608,112230.0,112220.0,0.0980887]
[1759138303738,1.55423524,112230.0,112220.0,0.14621349]
[1759138305031,0.73967524,112230.0,112220.0,0.14621349]
[1759138305232,1.55423524,112230.0,112220.0,0.14621349]
[1759138306246,1.70223524,112230.0,112220.0,0.14621349]
[1759138306633,0.88767524,112230.0,112220.0,0.14621349]
[1759138306830,1.70227524,112230.0,112220.0,0.16736349]
[1759138307030,1.4448811,112230.0,112220.0,0.18065349]
[1759138307245,0.79859414,112230.0,112220.0,0.43800763]
[1759138307432,1.61319414,112230.0,112220.0,0.43800763]
[1759138307741,1.4449211,112230.0,112220.0,0.43800763]
[1759138309032,0.88767524,112230.0,112220.0,0.14621349]
[1759138309232,1.70223524,112230.0,112220.0,0.14621349]
[1759138310039,0.88767524,112230.0,112220.0,0.14621349]
[1759138310241,1.70223524,112230.0,112220.0,0.14621349]
[1759138310942,0.88767524,112230.0,112220.0,0.14621349]
[1759138311135,1.70223524,112230.0,112220.0,0.14621349]
[1759138317944,1.70223524,112230.0,112220.0,0.16851349]
[1759138318146,1.70223524,112230.0,112220.0,0.14621349]
[1759138323141,1.72260517,112230.0,112220.0,0.14621349]
[1759138323344,1.72260517,112230.0,112220.0,0.0980887]
[1759138330847,1.72260517,112230.0,112220.0,0.14622206]
[1759138331041,1.72260517,112230.0,112220.0,0.16852206]
[1759138331246,1.46517103,112230.0,112220.0,0.16852206]
[1759138331445,1.72252517,112230.0,112220.0,0.16852206]
[1759138332445,0.90804517,112230.0,112220.0,0.16852206]
[1759138332644,1.72252517,112230.0,112220.0,0.16852206]
[1759138333350,0.49267103,112230.0,112220.0,0.4391062]
[1759138333647,1.30755103,112230.0,112220.0,0.43910847]
[1759138334151,1.30751103,112230.0,112220.0,0.43910847]
[1759138334343,0.49307103,112230.0,112220.0,0.43910847]
[1759138334543,1.30751103,112230.0,112220.0,0.43910847]
[1759138334746,0.40398993,112230.0,112220.0,0.43910847]
[1759138335048,1.21842993,112230.0,112220.0,0.43910847]
[1759138335648,1.30751103,112230.0,112220.0,0.43910847]
[1759138343761,1.30751103,112230.0,112220.0,0.39097284]
[1759138343961,1.30751103,112230.0,112220.0,0.39093284]
[1759138344363,1.56488128,112230.0,112220.0,0.6483192]
[1759138347161,0.75044128,112230.0,112220.0,0.6483192]
[1759138347359,1.56480128,112230.0,112220.0,0.6483192]
[1759138349766,1.56480128,112230.0,112220.0,0.71246734]
[1759138350767,1.56480128,112230.0,112220.0,0.6483192]
[1759138351564,1.56480128,112230.0,112220.0,0.1335787]
[1759138351770,1.56480128,112230.0,112220.0,0.6483192]
[1759138352075,1.56480128,112230.0,112220.0,0.39094895]
[1759138352459,1.57482128,112230.0,112220.0,0.37771895]
[1759138353774,1.57482128,112230.0,112220.0,0.42585103]
[1759138355275,0.50309103,112230.0,112220.0,0.42585103]
[1759138355478,1.56472128,112230.0,112220.0,0.43983103]
[1759138356576,1.56472128,112230.0,112220.0,0.39169895]
[1759138356776,1.56472128,112230.0,112220.0,0.1343287]
[1759138356970,0.75044128,112230.0,112220.0,0.39169895]
[1759138357172,1.56472128,112230.0,112220.0,0.39169895]
[1759138357670,0.75044128,112230.0,112220.0,0.39169895]
[1759138357876,1.56472128,112230.0,112220.0,0.39169895]
[1759138360286,0.49307103,112230.0,112220.0,0.39169895]
[1759138360484,1.30731103,112230.0,112220.0,0.6490692]
[1759138362090,1.30691103,112230.0,112220.0,0.6490692]
[1759138362286,1.30731103,112230.0,112220.0,0.6490692]
[1759138363089,1.30731103,112230.0,112220.0,0.1343287]
[1759138363290,1.56468128,112230.0,112220.0,0.39169895]
[1759138363694,1.56468128,112230.0,112220.0,0.45584709]
[1759138366396,0.75044128,112230.0,112220.0,0.45584709]
[1759138366598,1.56468128,112230.0,112220.0,0.45584709]
[1759138368193,1.56468128,112230.0,112220.0,0.39169895]
[1759138368899,1.56468128,112230.0,112220.0,0.1343287]
[1759138369394,1.56468128,112230.0,112220.0,0.39169895]
[1759138375205,1.57470128,112230.0,112220.0,0.39169895]
[1759138376908,1.57470128,112230.0,112220.0,0.30265025]
[1759138377101,1.57470128,112230.0,112220.0,0.009]
[1759138377301,1.83207153,112230.0,112220.0,0.05713806]
[1759138379413,1.85276104,112230.0,112220.0,0.05713806]
[1759138381711,2.00076104,112230.0,112220.0,0.05713806]
[1759138383011,2.00092786,112230.0,112220.0,0.05713806]
[1759138383612,2.00092786,112230.0,112220.0,0.009]
[1759138387516,1.18668786,112230.0,112220.0,0.009]
[1759138387814,2.00076786,112230.0,112220.0,0.009]
[1759138390113,2.36156786,112230.0,112220.0,0.009]
[1759138390714,1.54748786,112230.0,112220.0,0.009]
[1759138390914,2.36156786,112230.0,112220.0,0.009]
[1759138393615,0.258199,112220.0,112210.0,0.04813806]
[1759138393809,0.118167,112210.0,112200.0,0.13724106]
[1759138394004,1.55041725,112210.0,112200.0,0.13724106]
[1759138394711,1.57077289,112210.0,112200.0,0.13724106]
[1759138394911,1.57077289,112210.0,112200.0,0.15955106]
[1759138395111,1.55037725,112210.0,112200.0,0.15955106]
[1759138395817,1.54937725,112210.0,112200.0,0.15955106]
[1759138396212,0.74033725,112210.0,112200.0,0.15955106]
[1759138396415,1.55437725,112210.0,112200.0,0.13724106]
[1759138396611,1.62009713,112210.0,112200.0,0.13724106]
[1759138396808,1.62009713,112210.0,112200.0,0.04813806]
[1759138397119,1.79644791,112210.0,112200.0,0.001]
[1759138397805,1.8052194,112210.0,112200.0,0.001]
[1759138398611,0.72584915,112210.0,112200.0,0.1255649]
[1759138398919,1.53992915,112210.0,112200.0,0.38293515]
[1759138399113,1.45203215,112210.0,112200.0,0.6403054]
[1759138399315,1.45223215,112210.0,112200.0,0.6403054]
[1759138399511,0.61680137,112210.0,112200.0,0.68844346]
[1759138399716,1.43244137,112210.0,112200.0,0.68844346]
[1759138399916,0.46880137,112210.0,112200.0,0.68844346]
[1759138400111,1.28404137,112210.0,112200.0,0.68844346]
[1759138400419,1.28452137,112210.0,112200.0,0.68844346]
[1759138400622,1.28412137,112210.0,112200.0,0.68844346]
[1759138400818,0.46880137,112210.0,112200.0,0.68844346]
[1759138401018,1.28452137,112210.0,112200.0,0.17370296]
[1759138401320,1.28452137,112210.0,112200.0,0.68844346]
[1759138402916,1.28460137,112210.0,112200.0,1.08844346]
[1759138403615,0.46880137,112210.0,112200.0,1.08844346]
[1759138403823,1.28460137,112210.0,112200.0,1.08844346]
[1759138404120,1.28420137,112210.0,112200.0,1.08844346]
[1759138404321,0.92376137,112210.0,112200.0,1.08844346]
[1759138406223,0.92376137,112210.0,112200.0,0.83113787]
[1759138406521,0.92376137,112210.0,112200.0,0.57370296]
[1759138406715,0.92376137,112210.0,112200.0,0.83113787]
[1759138407320,0.09922988,112210.0,112200.0,1.04043472]
[1759138407521,0.91462988,112210.0,112200.0,1.04043472]
[1759138407716,0.91502988,112210.0,112200.0,1.04043472]
[1759138410623,0.91502988,112210.0,112200.0,1.10458286]
[1759138411424,0.91502988,112210.0,112200.0,0.84714795]
[1759138415022,0.09922988,112210.0,112200.0,0.84714795]
[1759138415223,0.91466988,112210.0,112200.0,0.84714795]
[1759138418125,0.09922988,112210.0,112200.0,0.84714795]
[1759138418322,0.91454988,112210.0,112200.0,1.10458286]
[1759138418522,0.09922988,112210.0,112200.0,1.10458286]
[1759138419430,0.09922988,112210.0,112200.0,0.70458286]
[1759138420626,0.09922988,112210.0,112200.0,0.44714795]
[1759138422829,0.09922988,112210.0,112200.0,0.18971304]
[1759138423129,0.09922988,112210.0,112200.0,0.44714795]
[1759138423628,0.09922988,112210.0,112200.0,0.38299981]
[1759138424128,0.09922988,112210.0,112200.0,0.64043472]
[1759138427226,0.07811988,112210.0,112200.0,0.64043472]
[1759138429035,0.10099988,112210.0,112200.0,0.64043472]
[1759138429831,0.10099988,112210.0,112200.0,1.45519472]
[1759138432536,0.10099988,112210.0,112200.0,0.64043472]
[1759138432934,0.10099988,112210.0,112200.0,1.45511472]
[1759138433742,0.10099988,112210.0,112200.0,1.51926286]
[1759138437339,0.10099988,112210.0,112200.0,1.88006286]
[1759138442944,0.10099988,112210.0,112200.0,0.55051304]
[1759138443137,0.10099988,112210.0,112200.0,1.51882286]
[1759138443436,0.10099988,112210.0,112200.0,1.26138795]
[1759138447440,0.10099988,112210.0,112200.0,0.44714795]
[1759138447645,0.10099988,112210.0,112200.0,1.26138795]
[1759138451841,0.10099988,112210.0,112200.0,1.33138795]
[1759138454550,0.10099988,112210.0,112200.0,1.26138795]
[1759138454946,0.10099988,112210.0,112200.0,1.33138795]
[1759138455453,0.10099988,112210.0,112200.0,1.58882286]
[1759138459856,0.10099988,112210.0,112200.0,1.51882286]
[1759138460455,0.10099988,112210.0,112200.0,1.58882286]
[1759138462945,0.10099988,112210.0,112200.0,1.07395304]
[1759138463151,0.10099988,112210.0,112200.0,1.58882286]
[1759138463760,0.10099988,112210.0,112200.0,1.51882286]
[1759138465059,0.10099988,112210.0,112200.0,1.00395304]
[1759138465258,0.10099988,112210.0,112200.0,1.51882286]
[1759138468153,0.10099988,112210.0,112200.0,0.70458286]
[1759138468459,0.10099988,112210.0,112200.0,1.51870842]
[1759138468859,0.10099988,112210.0,112200.0,0.70454842]
[1759138469156,0.10099988,112210.0,112200.0,1.51870842]
[1759138474356,0.10099988,112210.0,112200.0,0.70454842]
[1759138474658,0.10099988,112210.0,112200.0,1.51870842]
[1759138475462,0.38386,112240.0,112220.0,0.1916579]
[1759138475660,0.40272837,112240.0,112230.0,0.43074574]
[1759138476159,0.49180157,112240.0,112230.0,0.43074574]
[1759138476363,0.49180157,112240.0,112230.0,0.38260879]
[1759138476364,0.49220157,112240.0,112230.0,0.38260879]
[1759138477663,0.50620157,112240.0,112230.0,0.38260879]
[1759138477867,0.51531786,112240.0,112230.0,0.38260879]
[1759138478055,0.51931786,112240.0,112230.0,0.38260879]
[1759138478565,0.50931786,112240.0,112230.0,0.38260879]
[1759138479164,0.57960324,112240.0,112230.0,0.38260879]
[1759138479963,0.57960324,112240.0,112230.0,0.1251911]
[1759138480160,0.57960324,112240.0,112230.0,0.38260879]
[1759138480463,1.09443862,112240.0,112230.0,0.1251911]
[1759138480668,0.57960324,112240.0,112230.0,0.1251911]
[1759138480963,0.57960324,112240.0,112230.0,0.38260879]
[1759138480964,0.83702093,112240.0,112230.0,0.38260879]
[1759138481164,0.57960324,112240.0,112230.0,0.38260879]
[1759138481559,0.83702093,112240.0,112230.0,0.38260879]
[1759138484767,0.85777031,112240.0,112230.0,0.1251911]
[1759138485068,0.85777031,112240.0,112230.0,0.38260879]
[1759138488168,1.00577031,112240.0,112230.0,0.38260879]
[1759138489770,0.74835262,112240.0,112230.0,0.38260879]
[1759138490068,1.00577031,112240.0,112230.0,0.38260879]
[1759138491470,0.74835262,112240.0,112230.0,0.38260879]
[1759138491671,1.56291262,112240.0,112230.0,0.38260879]
[1759138491870,1.82033031,112240.0,112230.0,0.38260879]
[1759138493975,1.56291262,112240.0,112230.0,0.38260879]
[1759138494176,1.82033031,112240.0,112230.0,0.38260879]
[1759138495573,1.56291262,112240.0,112230.0,0.38260879]
[1759138495968,1.41491262,112240.0,112230.0,0.38260879]
[1759138496168,1.67233031,112240.0,112230.0,0.38260879]
[1759138498281,1.31153031,112240.0,112230.0,0.38260879]
[1759138498480,1.67233031,112240.0,112230.0,0.38260879]
[1759138500182,1.41491262,112240.0,112230.0,0.38260879]
[1759138500382,1.67233031,112240.0,112230.0,0.38260879]
[1759138500582,1.929748,112240.0,112230.0,0.1251911]
[1759138500778,1.929748,112240.0,112230.0,0.38260879]
[1759138501881,1.929748,112240.0,112230.0,0.1251911]
[1759138502082,1.929748,112240.0,112230.0,0.38260879]
[1759138502883,1.929748,112240.0,112230.0,0.1251911]
[1759138503083,1.929748,112240.0,112230.0,0.38260879]
[1759138503683,1.41491262,112240.0,112230.0,0.38260879]
[1759138503885,1.929748,112240.0,112230.0,0.38260879]
[1759138505791,1.115188,112240.0,112230.0,0.38260879]
[1759138505989,1.41443262,112240.0,112230.0,0.38260879]
[1759138506291,1.929268,112240.0,112230.0,0.38260879]
[1759138507287,0.1105611,112230.0,112220.0,0.08271695]
[1759138507488,1.01839795,112230.0,112220.0,0.04813695]
[1759138507688,0.089097,112210.0,112200.0,0.15038815]
[1759138507893,1.56446306,112210.0,112200.0,0.17148815]
[1759138508287,0.66016606,112210.0,112200.0,0.42890584]
[1759138508492,1.56466306,112210.0,112200.0,0.42890584]
[1759138509190,1.56466306,112210.0,112200.0,0.43290584]
[1759138510094,1.56466306,112210.0,112200.0,0.38476889]
[1759138510294,1.54419469,112210.0,112200.0,0.38476889]
[1759138510492,1.54419469,112210.0,112200.0,0.38076889]
[1759138510693,1.54419469,112210.0,112200.0,0.38876889]
[1759138510894,1.54419469,112210.0,112200.0,0.43690584]
[1759138511092,1.54419469,112210.0,112200.0,0.38876889]
[1759138511896,0.72879469,112210.0,112200.0,0.1313512]
[1759138512087,1.54431469,112210.0,112200.0,0.38876889]
[1759138512900,1.54431469,112210.0,112200.0,0.1313512]
[1759138513198,1.54431469,112210.0,112200.0,0.38876889]
[1759138513698,1.56471711,112210.0,112200.0,0.38876889]
[1759138514095,1.54431469,112210.0,112200.0,0.38876889]
[1759138514495,1.54431469,112210.0,112200.0,0.1313512]
[1759138514692,1.54443469,112210.0,112200.0,0.38876889]
[1759138515296,1.54439469,112210.0,112200.0,0.38876889]
[1759138517201,1.54439469,112210.0,112200.0,0.1313512]
[1759138517404,1.54439469,112210.0,112200.0,0.38876889]
[1759138518400,1.54439469,112210.0,112200.0,0.29966769]
[1759138518596,1.92558615,112210.0,112200.0,0.38877259]
[1759138519006,1.90519469,112210.0,112200.0,0.38877259]
[1759138519802,1.90519469,112210.0,112200.0,0.1313549]
[1759138520002,1.90519469,112210.0,112200.0,0.1233549]
[1759138520203,1.90519469,112210.0,112200.0,0.38377259]
[1759138520799,1.90519469,112210.0,112200.0,0.1263549]
[1759138520998,1.91249469,112210.0,112200.0,0.003]
[1759138521198,1.91249469,112210.0,112200.0,0.0921049]
[1759138521405,1.91249469,112210.0,112200.0,0.1138949]
[1759138522003,1.91249469,112210.0,112200.0,0.02579]
[1759138522804,2.59031197,112210.0,112200.0,0.004]
[1759138526305,2.73831197,112210.0,112200.0,0.004]
[1759138526505,0.1123029,112190.0,112180.0,0.38108189]
[1759138526709,1.54568059,112190.0,112180.0,0.38108189]
[1759138526904,0.73052059,112190.0,112180.0,0.38108189]
[1759138527207,1.61674423,112190.0,112180.0,0.38108189]
[1759138527710,1.61674423,112190.0,112180.0,0.38908189]
[1759138528508,0.80166423,112190.0,112180.0,0.38508189]
[1759138528709,1.61658423,112190.0,112180.0,0.38508189]
[1759138529309,1.62556907,112190.0,112180.0,0.38508189]
[1759138530316,1.6257279,112190.0,112180.0,0.1276642]
[1759138531810,1.6254479,112190.0,112180.0,0.1276642]
[1759138534610,1.64593184,112190.0,112180.0,0.1276642]
[1759138535317,1.38835532,112190.0,112180.0,0.1276642]
[1759138535614,1.64593184,112190.0,112180.0,0.1276642]
[1759138535907,0.83129184,112190.0,112180.0,0.1276642]
[1759138536113,1.64569184,112190.0,112180.0,0.1276642]
[1759138537114,0.83129184,112190.0,112180.0,0.17580115]
[1759138537317,1.64573184,112190.0,112180.0,0.17580115]
[1759138537711,0.55323138,112190.0,112180.0,0.83337767]
[1759138537914,0.43194364,112190.0,112180.0,0.83337767]
[1759138538106,1.24678364,112190.0,112180.0,0.83337767]
[1759138538310,0.52145654,112190.0,112180.0,0.83337767]
[1759138538512,0.07114364,112190.0,112180.0,0.78524072]
[1759138538709,1.264347,112200.0,112190.0,0.1235729]
[1759138538912,1.287537,112200.0,112190.0,0.17161968]
[1759138539109,1.287537,112200.0,112190.0,0.4291962]
[1759138539921,1.287537,112200.0,112190.0,0.4331962]
[1759138540114,1.287537,112200.0,112190.0,0.4351962]
[1759138541216,1.35995008,112200.0,112190.0,0.4351962]
[1759138541522,0.54551008,112200.0,112190.0,0.4351962]
[1759138541711,1.36003008,112200.0,112190.0,0.4351962]
[1759138541915,1.35999008,112200.0,112190.0,0.4351962]
[1759138542422,0.54551008,112200.0,112190.0,0.4351962]
[1759138542615,1.35995008,112200.0,112190.0,0.17761968]
[1759138542814,1.35995008,112200.0,112190.0,0.4351962]
[1759138544625,1.27080308,112200.0,112190.0,0.4351962]
[1759138545324,1.35990798,112200.0,112190.0,0.4351962]
[1759138547725,0.54550798,112200.0,112190.0,0.4351962]
[1759138547925,1.35990798,112200.0,112190.0,0.4351962]
[1759138559032,1.6174845,112200.0,112190.0,0.08850678]
[1759138559224,2.28302102,112200.0,112190.0,0.05404678]
[1759138559429,2.30347469,112200.0,112190.0,0.006]
[1759138560234,2.45147469,112200.0,112190.0,0.006]
[1759138561333,0.0218,112180.0,112170.0,0.4294519]
[1759138561535,0.83616,112180.0,112170.0,0.4294519]
[1759138561737,0.4717135,112190.0,112180.0,0.1248006]
[1759138561931,1.30652122,112190.0,112180.0,0.38237712]
[1759138562137,0.49216122,112190.0,112180.0,0.38237712]
[1759138562439,1.30652122,112190.0,112180.0,0.38237712]
[1759138562633,0.49256122,112190.0,112180.0,0.4304239]
[1759138562835,1.30692122,112190.0,112180.0,0.4304239]
[1759138563333,1.30892122,112190.0,112180.0,0.1248006]
[1759138563533,1.56749774,112190.0,112180.0,0.1248006]
[1759138563738,0.75313774,112190.0,112180.0,0.1248006]
[1759138563939,1.56753774,112190.0,112180.0,0.1248006]
[1759138565441,1.30996122,112190.0,112180.0,0.1248006]
[1759138566140,0.49556122,112190.0,112180.0,0.1248006]
[1759138566439,1.30996122,112190.0,112180.0,0.1248006]
[1759138570038,1.2895135,112190.0,112180.0,0.1248006]
[1759138571443,1.54709002,112190.0,112180.0,0.1248006]
[1759138576243,0.73269002,112190.0,112180.0,0.1248006]
[1759138576439,1.54705002,112190.0,112180.0,0.38237712]
[1759138577542,0.73269002,112190.0,112180.0,0.38237712]
[1759138577747,1.54705002,112190.0,112180.0,0.38237712]
[1759138578148,1.69505002,112190.0,112180.0,0.38237712]
[1759138578546,1.54705002,112190.0,112180.0,0.38237712]
[1759138580048,1.54705002,112190.0,112180.0,0.4304239]
[1759138580255,0.40643901,112190.0,112180.0,0.38237712]
[1759138580547,1.22039901,112190.0,112180.0,0.4304239]
[1759138580745,1.20036,112190.0,112180.0,0.4304239]
[1759138581248,1.22079967,112190.0,112180.0,0.4304239]
[1759138581945,1.20036,112190.0,112180.0,0.4304239]
[1759138582843,1.2894728,112190.0,112180.0,0.4304239]
[1759138584746,0.0034,112190.0,112180.0,0.8304239]
[1759138584946,0.003,112190.0,112180.0,1.14317712]
[1759138585149,0.003,112190.0,112180.0,1.20732526]
[1759138585647,0.0034,112190.0,112180.0,1.20732526]
[1759138586854,0.0034,112190.0,112180.0,1.21609296]
[1759138587155,0.0034,112190.0,112180.0,1.20732526]
[1759138590157,0.0034,112190.0,112180.0,1.21623288]
[1759138590357,0.0034,112190.0,112180.0,1.47360094]
[1759138593163,0.0034,112190.0,112180.0,1.4094528]
[1759138593463,0.003,112190.0,112180.0,1.47360094]
[1759138593666,0.0034,112190.0,112180.0,1.73107323]
[1759138593958,0.0034,112190.0,112180.0,1.4094528]
[1759138594157,0.0034,112190.0,112180.0,2.2236528]
[1759138599556,0.0034,112190.0,112180.0,1.8236528]
[1759138599757,0.0034,112190.0,112180.0,1.88780094]
[1759138600258,0.0034,112190.0,112180.0,1.8236528]
[1759138600567,0.0034,112190.0,112180.0,1.88780094]
[1759138601852,0.0034,112190.0,112180.0,1.8236528]
[1759138602864,1.55430176,112210.0,112200.0,0.1235549]
[1759138603058,1.57472671,112210.0,112200.0,0.38102719]
[1759138603555,0.50317442,112210.0,112200.0,0.38102719]
[1759138603760,1.57468671,112210.0,112200.0,0.38102719]
[1759138603965,1.55426176,112210.0,112200.0,0.38102719]
[1759138604267,1.56126176,112210.0,112200.0,0.38102719]
[1759138604466,1.63357574,112210.0,112200.0,0.38102719]
[1759138605169,1.63957574,112210.0,112200.0,0.38102719]
[1759138605466,1.6486169,112210.0,112200.0,0.38102719]
[1759138606861,0.8345769,112210.0,112200.0,0.38102719]
[1759138607165,2.0481769,112210.0,112200.0,0.68653199]
[1759138607465,2.0477769,112210.0,112200.0,0.68653199]
[1759138607668,2.0481769,112210.0,112200.0,0.68653199]
[1759138608472,2.0481769,112210.0,112200.0,0.4290597]
[1759138609162,2.03861207,112210.0,112200.0,0.4290597]
[1759138609464,2.03857207,112210.0,112200.0,0.4290597]
[1759138609856,1.77609978,112210.0,112200.0,0.4290597]
[1759138610061,2.03357207,112210.0,112200.0,0.4290597]
[1759138611869,2.03357207,112210.0,112200.0,0.08248251]
[1759138612072,2.03357207,112210.0,112200.0,0.3399548]
[1759138612669,1.96125809,112210.0,112200.0,0.3399548]
[1759138612962,1.96121809,112210.0,112200.0,0.3399548]
[1759138613169,1.96121809,112210.0,112200.0,0.4290599]
[1759138616265,1.96121809,112210.0,112200.0,0.17158761]
[1759138616569,1.96121809,112210.0,112200.0,0.04803251]
[1759138616959,1.14729809,112210.0,112200.0,0.13713761]
[1759138617169,1.96117809,112210.0,112200.0,0.15965761]
[1759138617374,2.03218075,112210.0,112200.0,0.15965761]
[1759138617671,2.03218075,112210.0,112200.0,0.4171299]
[1759138618670,1.21830075,112210.0,112200.0,0.15965761]
[1759138618972,2.03218075,112210.0,112200.0,0.4311199]
[1759138619869,2.03214075,112210.0,112200.0,0.4311199]
[1759138620471,1.21830075,112210.0,112200.0,0.4311199]
[1759138621072,2.03214075,112210.0,112200.0,0.4311199]
[1759138625475,0.1110049,112200.0,112190.0,0.17291341]
[1759138625674,1.01514465,112200.0,112190.0,0.13714341]
[1759138626373,1.82890465,112200.0,112190.0,0.15966341]
[1759138627278,1.01514465,112200.0,112190.0,0.15966341]
[1759138627573,1.82890465,112200.0,112190.0,0.15966341]
[1759138629373,1.82890465,112200.0,112190.0,0.13714341]
[1759138629571,1.97690465,112200.0,112190.0,0.13714341]
[1759138629770,1.82890465,112200.0,112190.0,0.13714341]
[1759138630172,1.01514465,112200.0,112190.0,0.13714341]
[1759138630375,1.82890465,112200.0,112190.0,0.15966341]
[1759138630575,0.40313517,112200.0,112190.0,0.4311257]
[1759138630767,1.47432746,112200.0,112190.0,0.4311257]
[1759138630967,0.40313517,112200.0,112190.0,0.4311257]
[1759138631272,1.19642,112200.0,112190.0,0.78309319]
[1759138631574,0.3827,112200.0,112190.0,0.78309319]
[1759138631875,1.19682,112200.0,112190.0,0.78309319]
[1759138632075,1.19642,112200.0,112190.0,0.78309319]
[1759138632272,1.19682,112200.0,112190.0,0.78309319]
[1759138633880,1.21732643,112200.0,112190.0,0.83120771]
[1759138635886,0.40360643,112200.0,112190.0,0.83120771]
[1759138636079,1.21728643,112200.0,112190.0,0.83120771]
[1759138636885,1.21728643,112200.0,112190.0,1.08868]
[1759138637773,0.0004,112200.0,112190.0,1.00136548]
[1759138637976,1.2784852,112210.0,112200.0,0.1232751]
[1759138638275,0.48615152,112210.0,112200.0,0.68633434]
[1759138638678,0.46506071,112210.0,112200.0,0.68633434]
[1759138638980,1.19716,112220.0,112210.0,0.1232672]
[1759138639173,1.21846329,112220.0,112210.0,0.70436728]
[1759138639373,0.85766329,112220.0,112210.0,1.06516728]
[1759138639573,0.02352,112220.0,112210.0,1.06516728]
[1759138639780,0.02352,112220.0,112210.0,1.46516728]
[1759138639976,0.0700556,112220.0,112210.0,1.46516728]
[1759138640177,1.2144072,112230.0,112220.0,0.1232592]
[1759138640479,1.30640991,112230.0,112220.0,0.63820378]
[1759138640979,1.39545121,112230.0,112220.0,0.63820378]
[1759138641281,0.49276991,112230.0,112220.0,0.63820378]
[1759138641473,1.5810422,112230.0,112220.0,0.63920378]
[1759138641673,1.5814422,112230.0,112220.0,0.63920378]
[1759138641882,1.6705235,112230.0,112220.0,0.63920378]
[1759138642081,1.41305121,112230.0,112220.0,0.63920378]
[1759138642777,1.41305121,112230.0,112220.0,0.38173149]
[1759138642778,1.6705235,112230.0,112220.0,0.38173149]
[1759138642977,1.6525235,112230.0,112220.0,0.1232592]
[1759138643279,1.6615235,112230.0,112220.0,0.38073149]
[1759138643781,1.6615235,112230.0,112220.0,0.63820378]
[1759138643981,1.64107372,112230.0,112220.0,0.63820378]
[1759138644180,1.64107372,112230.0,112220.0,0.38073149]
[1759138645183,1.64107372,112230.0,112220.0,0.63820378]
[1759138646080,1.63707372,112230.0,112220.0,0.63820378]
[1759138646283,1.37960143,112230.0,112220.0,0.63820378]
[1759138646482,1.64007372,112230.0,112220.0,0.63820378]
[1759138646685,1.64007372,112230.0,112220.0,0.38073149]
[1759138648187,1.64007372,112230.0,112220.0,0.63820378]
[1759138648587,1.38260143,112230.0,112220.0,0.63820378]
[1759138648884,1.64007372,112230.0,112220.0,0.63820378]
[1759138650894,1.64007372,112230.0,112220.0,0.1232592]
[1759138651192,1.64007372,112230.0,112220.0,0.63820378]
[1759138652282,1.38260143,112230.0,112220.0,0.38062268]
[1759138653090,1.38260143,112230.0,112220.0,0.1232592]
[1759138653290,1.38240143,112230.0,112220.0,0.38062268]
[1759138655090,1.38236143,112230.0,112220.0,0.38062268]
[1759138656592,0.56900143,112230.0,112220.0,0.38062268]
[1759138656791,1.38236143,112230.0,112220.0,0.38062268]
[1759138657091,0.56900143,112230.0,112220.0,0.38062268]
[1759138657393,1.38232143,112230.0,112220.0,0.38062268]
[1759138659492,0.56900143,112230.0,112220.0,0.38062268]
[1759138659694,1.38232143,112230.0,112220.0,0.38062268]
[1759138659991,1.40274824,112230.0,112220.0,0.38062268]
[1759138660388,1.40270824,112230.0,112220.0,0.38062268]
[1759138663293,1.40270824,112230.0,112220.0,0.1232592]
[1759138663485,1.40270824,112230.0,112220.0,0.38062268]
[1759138663691,0.58942824,112230.0,112220.0,0.38062268]
[1759138663886,1.40266824,112230.0,112220.0,0.38062268]
[1759138665498,1.40266824,112230.0,112220.0,0.42873106]
[1759138668386,1.40266824,112230.0,112220.0,0.33964186]
[1759138669793,1.40266824,112230.0,112220.0,0.42872986]
[1759138671593,1.40266824,112230.0,112220.0,0.33964186]
[1759138672500,1.66003172,112230.0,112220.0,0.33964186]
[1759138673997,1.66003172,112230.0,112220.0,0.08227838]
[1759138675996,1.66733172,112230.0,112220.0,0.06934838]
[1759138681703,1.66003172,112230.0,112220.0,0.06934838]
[1759138683916,1.66003172,112230.0,112220.0,0.02124]
[1759138686814,0.84679172,112230.0,112220.0,0.03488]
[1759138687014,1.40246824,112230.0,112220.0,0.03488]
[1759138687315,1.65983172,112230.0,112220.0,0.03488]